bitfinex-derivatives/quotes_SOLF0:USTF0_20250227
["timestamp","ask_amount","ask_price","bid_price","bid_amount"]
[1740675870316,0.05450535,137.34,137.32,0.05047967]
[1740675871023,0.05450535,137.34,137.32,7.33797967]
[1740675871523,0.05450535,137.34,137.33,7.2874]
[1740675872524,3.9439,137.41,137.32,0.05047967]
[1740675872823,3.9439,137.41,137.29,198.14]
[1740675873123,3.9439,137.41,137.37,7.2852]
[1740675873321,12.12,137.45,137.29,198.14]
[1740675873519,16.036,137.48,137.4,7.2834]
[1740675873722,16.036,137.48,137.38,0.05603152]
[1740675874023,0.04603188,137.44,137.42,0.05066288]
[1740675874425,3.896,137.48,137.3,1.30441586]
[1740675874623,0.051353,137.44,137.42,0.04680735]
[1740675874822,7.2813,137.45,137.39,7.2841]
[1740675875018,0.05476945,137.44,137.42,0.05316525]
[1740675875422,7.2804,137.47,137.42,0.04831327]
[1740675875627,0.04880216,137.44,137.42,0.04831327]
[1740675876120,7.2821,137.43,137.42,0.04831327]
[1740675876329,0.04880216,137.44,137.29,198.14]
[1740675876529,7.284,137.4,137.29,198.14]
[1740675877125,7.2835,137.41,137.36,7.2854]
[1740675877322,7.2835,137.41,137.29,198.14]
[1740675877525,0.04934434,137.4,137.37,0.04915716]
[1740675877729,7.2837,137.4,137.36,7.2855]
[1740675877926,0.0509919,137.4,137.37,0.04875599]
[1740675878124,7.2831,137.41,137.29,198.14]
[1740675878423,0.04845729,137.4,137.29,198.14]
[1740675878625,3.183e-05,137.36,137.35,7.2863]
[1740675878827,7.2818,137.44,137.35,5.7908]
[1740675879226,7.2818,137.44,137.4,7.2832]
[1740675879922,0.05328692,137.43,137.41,0.04850433]
[1740675880827,0.05328692,137.43,137.41,7.33140433]
[1740675881724,0.05328692,137.43,137.42,7.2826]
[1740675882227,208.09497174,137.58,137.41,0.04850433]
[1740675882431,5.8069,137.54,137.35,17.8708]
[1740675882631,5.8069,137.54,137.36,15.87507452]
[1740675882931,5.8069,137.54,137.35,17.8708]
[1740675883135,5.8069,137.54,137.36,1.30372134]
[1740675883334,7.2781,137.51,137.46,7.2801]
[1740675883528,5.8069,137.54,137.44,0.05212179]
[1740675883731,0.052112,137.5,137.42,4.0117]
[1740675883929,0.052112,137.5,137.48,0.05315086]
[1740675884128,0.052112,137.5,137.45,7.2809]
[1740675884328,0.052112,137.5,137.48,0.04901231]
[1740675885432,38.63658925,137.57,137.48,0.04901231]
[1740675885732,79.24437851,137.58,137.43,12.2]
[1740675885733,7.2781,137.51,137.43,12.2]
[1740675885932,1.9712,137.58,137.44,7.2815]
[1740675886431,0.046878,137.52,137.43,19.4817]
[1740675886631,0.046878,137.52,137.5,0.04692807]
[1740675886832,7.2784,137.5,137.43,12.2]
[1740675887334,0.05205745,137.48,137.45,0.05124889]
[1740675887534,1.9712,137.58,137.45,0.05124889]
[1740675887733,1.9712,137.58,137.43,12.2]
[1740675887935,7.2774,137.52,137.43,12.2]
[1740675888230,1.9712,137.58,137.43,12.2]
[1740675888425,7.2788,137.5,137.43,12.2]
[1740675888630,7.2788,137.5,137.49,0.05474156]
[1740675888842,1.9712,137.58,137.43,12.2]
[1740675889031,0.02762296,137.51,137.48,0.05035258]
[1740675889234,1.9712,137.58,137.43,12.2]
[1740675889433,1.9712,137.58,137.48,0.04635757]
[1740675889633,0.02762296,137.51,137.48,0.04635757]
[1740675889833,7.2807,137.46,137.42,4.0117]
[1740675890036,12.2,137.54,137.45,0.04731419]
[1740675890335,1.9261,137.53,137.41,198.04]
[1740675890534,0.02762296,137.51,137.48,3.026e-05]
[1740675890735,7.2789,137.49,137.48,3.026e-05]
[1740675891435,29.0989,137.49,137.48,3.026e-05]
[1740675892233,7.2857,137.37,137.34,1.8503]
[1740675892940,7.2849,137.38,137.34,1.8503]
[1740675893138,4.0269,137.45,137.34,1.8503]
[1740675893339,191.0,137.48,137.37,7.2848]
[1740675893535,7.2824,137.43,137.37,7.2848]
[1740675893742,7.2824,137.43,137.38,1.9122]
[1740675894540,0.0238187,137.42,137.39,0.05213003]
[1740675894842,7.2824,137.43,137.39,0.05213003]
[1740675895042,7.2824,137.43,137.39,2.02023003]
[1740675895442,7.2824,137.43,137.4,1.9134]
[1740675899650,4.0269,137.49,137.4,1.9134]
[1740675900048,4.0269,137.49,137.43,0.05123178]
[1740675901154,7.281,137.45,137.43,0.05123178]
[1740675901756,4.0269,137.49,137.43,0.05123178]
[1740675901954,1.984,137.5,137.43,0.05123178]
[1740675903453,7.2809,137.46,137.4,7.16370916]
[1740675904055,7.281,137.45,137.4,7.16370916]
[1740675904658,0.05123178,137.44,137.41,0.05369196]
[1740675905046,7.33293178,137.44,137.41,0.05369196]
[1740675906151,0.05123178,137.44,137.41,0.05369196]
[1740675907057,0.05123178,137.44,137.42,7.2823]
[1740675907457,0.05123178,137.44,137.41,0.05369196]
[1740675908153,1.984,137.5,137.44,7.2813]
[1740675909158,7.2795,137.48,137.44,7.2813]
[1740675909359,7.2795,137.48,137.46,0.04995772]
[1740675909549,1.984,137.5,137.46,0.04995772]
[1740675909755,7.2781,137.51,137.46,0.04995772]
[1740675910267,7.2775,137.52,137.48,7.2791]
[1740675910760,7.2775,137.52,137.49,7.32913695]
[1740675911652,7.277,137.53,137.49,7.32913695]
[1740675911847,3.8856,137.54,137.49,7.32913695]
[1740675911848,3.8856,137.54,137.49,0.05033695]
[1740675912359,7.2784,137.5,137.49,0.05033695]
[1740675912754,7.2776,137.52,137.49,0.05033695]
[1740675913354,11.1621,137.54,137.5,7.2782]
[1740675913561,3.8856,137.54,137.49,0.05033695]
[1740675913863,7.2757,137.55,137.49,0.05033695]
[1740675914155,1.9724,137.58,137.49,0.05033695]
[1740675914362,1.9724,137.58,137.46,1.9996]
[1740675914562,1.9724,137.58,137.52,0.04979594]
[1740675914959,7.2768,137.53,137.52,0.04979594]
[1740675915165,1.9724,137.58,137.46,1.9996]
[1740675915359,1.9724,137.58,137.44,197.94]
[1740675915562,14.5519,137.55,137.44,197.94]
[1740675915955,21.91,137.55,137.38,1.9273]
[1740675916162,0.04979594,137.48,137.45,0.05135613]
[1740675916360,12.02,137.49,137.38,1.9273]
[1740675916769,12.02,137.49,137.39,29.95315716]
[1740675917566,0.04694135,137.45,137.43,0.04680077]
[1740675917761,0.04694135,137.45,137.43,7.32850077]
[1740675917966,0.04694135,137.45,137.43,0.04680077]
[1740675918769,0.04694135,137.45,137.43,7.32850077]
[1740675918965,0.04694135,137.45,137.43,0.04680077]
[1740675919969,7.2839,137.4,137.36,197.9]
[1740675920170,1.9783,137.44,137.36,197.9]
[1740675920670,7.2845,137.39,137.36,197.9]
[1740675921071,0.05307445,137.39,137.36,197.94879349]
[1740675921570,0.05307445,137.39,137.36,0.04879349]
[1740675922274,7.2852,137.37,137.36,0.04879349]
[1740675922966,7.2867,137.35,137.3,1.8872]
[1740675923172,0.05307445,137.39,137.3,1.8872]
[1740675923476,7.2856,137.37,137.33,7.2869]
[1740675923775,12.02,137.42,137.34,7.2868]
[1740675923971,0.05238567,137.39,137.37,0.04979158]
[1740675924176,0.05238567,137.39,137.3,1.8872]
[1740675924374,12.02,137.42,137.3,1.8872]
[1740675924581,7.2861,137.36,137.3,1.8872]
[1740675924772,12.02,137.42,137.3,1.8872]
[1740675924972,1.8573,137.41,137.3,1.8872]
[1740675925176,7.2849,137.38,137.3,1.8872]
[1740675925385,0.04779782,137.37,137.35,7.2863]
[1740675925779,0.04779782,137.37,137.34,0.04613658]
[1740675926179,7.2863,137.35,137.34,0.04613658]
[1740675927070,0.04779782,137.37,137.31,7.288]
[1740675927269,1.8573,137.41,137.31,7.288]
[1740675927471,1.8573,137.41,137.29,199.9205]
[1740675928181,0.05155183,137.36,137.34,0.05585477]
[1740675928381,7.2854,137.37,137.34,0.05585477]
[1740675928578,0.05296973,137.36,137.34,0.05585477]
[1740675928978,7.33926973,137.36,137.34,0.05585477]
[1740675929976,0.05296973,137.36,137.34,0.05585477]
[1740675930375,0.05296973,137.36,137.35,7.2863]
[1740675930775,1.9783,137.44,137.34,0.05585477]
[1740675930976,7.2823,137.43,137.39,7.2837]
[1740675931281,1.9783,137.44,137.32,1.9343]
[1740675931479,7.2829,137.42,137.32,1.9343]
[1740675931978,0.05449789,137.38,137.37,7.2852]
[1740675932168,7.2829,137.42,137.36,0.05540899]
[1740675932373,0.05252322,137.39,137.36,0.05540899]
[1740675933076,0.05252322,137.39,137.37,7.2852]
[1740675933376,0.05252322,137.39,137.36,0.05540899]
[1740675933977,7.2852,137.37,137.36,0.05540899]
[1740675934375,7.2876,137.33,137.29,199.9205]
[1740675935078,3.8841,137.38,137.29,199.9205]
[1740675935281,3.8841,137.38,137.29,197.94]
[1740675935484,0.05126231,137.35,137.32,0.04628847]
[1740675935780,7.2897,137.29,137.27,29.95315716]
[1740675936171,7.2897,137.29,137.25,7.2914]
[1740675936777,0.05089638,137.28,137.26,0.04871498]
[1740675941382,0.05089638,137.28,137.26,7.33971498]
[1740675941885,0.05089638,137.28,137.27,7.2905]
[1740675948289,0.05089638,137.28,137.26,0.04871498]
[1740675948989,0.05089638,137.28,137.27,7.2905]
[1740675949380,0.05089638,137.28,137.26,7.33951498]
[1740675949585,0.05089638,137.28,137.26,0.04871498]
[1740675950488,7.2905,137.27,137.26,0.04871498]
[1740675951085,7.34109638,137.28,137.26,0.04871498]
[1740675951495,0.05089638,137.28,137.26,0.04871498]
[1740675951687,7.2905,137.27,137.26,0.04871498]
[1740675953099,0.05089638,137.28,137.18,3.7499]
[1740675953500,0.05089638,137.28,137.18,1.8663]
[1740675953701,7.2939,137.21,137.18,1.8663]
[1740675953998,7.2939,137.21,137.18,7.2951]
[1740675954302,7.34142817,137.21,137.18,0.05264359]
[1740675954499,0.04722817,137.21,137.18,0.05264359]
[1740675954700,7.2945,137.2,137.18,0.05264359]
[1740675955405,0.04722817,137.21,137.18,0.05264359]
[1740675955805,7.2948,137.19,137.18,0.05264359]
[1740675956001,0.04722817,137.21,137.16,40.01771603]
[1740675956402,7.2948,137.19,137.13,198.16]
[1740675956903,7.2948,137.19,137.14,7.297]
[1740675957097,7.2953,137.19,137.14,7.297]
[1740675957305,0.05025746,137.18,137.15,0.05567727]
[1740675957504,0.05025746,137.18,137.16,7.2964]
[1740675957809,0.05025746,137.18,137.15,0.05567727]
[1740675958206,0.05025746,137.18,137.16,7.2961]
[1740675958415,0.05025746,137.18,137.15,0.05567727]
[1740675959302,0.05025746,137.18,137.15,7.35227727]
[1740675959498,0.05025746,137.18,137.15,0.05567727]
[1740675960300,0.05025746,137.18,137.17,7.2959]
[1740675960905,0.05025746,137.18,137.15,0.05567727]
[1740675962207,0.05025746,137.18,137.17,7.2959]
[1740675962507,7.2923,137.24,137.15,0.05567727]
[1740675962706,2.0104,137.26,137.14,1.9466]
[1740675962900,191.0,137.33,137.15,11.94]
[1740675963101,5.9034,137.32,137.15,11.94]
[1740675963499,0.05073645,137.25,137.22,0.04877342]
[1740675963810,5.9034,137.32,137.16,193.0]
[1740675964010,0.05377055,137.25,137.22,0.05575663]
[1740675964308,7.2909,137.27,137.22,7.2931]
[1740675964508,0.05382878,137.25,137.22,7.3429088]
[1740675964804,7.2921,137.24,137.22,0.0498088]
[1740675965016,0.05382878,137.25,137.22,0.0498088]
[1740675965200,0.05382878,137.25,137.17,1.924]
[1740675965402,7.2948,137.19,137.14,1.9466]
[1740675965702,3.925,137.26,137.14,1.9466]
[1740675966006,7.2946,137.2,137.15,7.2966]
[1740675966200,3.925,137.26,137.14,1.9466]
[1740675966505,0.04843974,137.19,137.16,0.04839118]
[1740675966701,3.925,137.26,137.14,1.9466]
[1740675966909,0.05603477,137.19,137.16,0.05033774]
[1740675967109,3.925,137.26,137.18,7.2953]
[1740675967308,0.05139281,137.19,137.16,0.05268547]
[1740675967610,3.925,137.26,137.2,7.2941]
[1740675967809,3.925,137.26,137.14,1.9466]
[1740675968614,3.925,137.26,137.16,7.2963]
[1740675968905,0.05591476,137.21,137.19,0.04596207]
[1740675969101,3.925,137.26,137.19,0.04596207]
[1740675969308,0.05295937,137.21,137.19,0.04596207]
[1740675969508,3.925,137.26,137.19,0.04596207]
[1740675969708,0.04993887,137.21,137.19,0.04596207]
[1740675970010,0.05055385,137.21,137.19,0.04596207]
[1740675970611,0.05055385,137.21,137.14,1.9466]
[1740675970808,0.05055385,137.21,137.16,7.2963]
[1740675971006,0.05055385,137.21,137.14,1.9466]
[1740675971311,7.34455385,137.21,137.14,1.9466]
[1740675971608,0.05055385,137.21,137.14,1.9466]
[1740675971807,7.2953,137.18,137.16,0.05100864]
[1740675972612,7.2959,137.17,137.16,0.05100864]
[1740675973210,0.04844438,137.18,137.16,0.05100864]
[1740675973709,7.2959,137.17,137.16,0.05100864]
[1740675973913,0.04844438,137.18,137.16,0.05100864]
[1740675974207,7.34414438,137.18,137.16,0.05100864]
[1740675974416,0.04844438,137.18,137.16,0.05100864]
[1740675975615,0.04844438,137.18,137.17,7.2959]
[1740675977712,2.0079,137.26,137.17,21.86]
[1740675977908,11.94,137.3,137.18,3.8559]
[1740675978212,7.2909,137.27,137.22,7.2929]
[1740675978414,5.9254,137.31,137.18,3.8559]
[1740675978816,5.9254,137.31,137.25,7.2916]
[1740675979012,0.04782206,137.26,137.25,7.2916]
[1740675979317,0.04901925,137.29,137.27,7.34304587]
[1740675979511,0.04901925,137.29,137.27,7.2901]
[1740675979717,0.04966034,137.29,137.27,0.05496145]
[1740675982321,0.04966034,137.29,137.28,7.29]
[1740675983318,0.04966034,137.29,137.27,0.05496145]
[1740675983516,0.04966034,137.29,137.27,7.34516145]
[1740675984920,0.04966034,137.29,137.27,0.05496145]
[1740675985125,0.04966034,137.29,137.28,7.29]
[1740675990520,0.04966034,137.29,137.27,0.05496145]
[1740675990926,0.04966034,137.29,137.28,7.29]
[1740675991129,0.04966034,137.29,137.27,0.05496145]
[1740675992029,0.04966034,137.29,137.28,7.29]
[1740675992429,0.04966034,137.29,137.24,2.0374]
[1740675993427,0.04966034,137.29,137.28,7.29]
[1740675995033,1.9954,137.36,137.26,15.768]
[1740675995429,1.9954,137.36,137.31,7.288]
[1740675995934,9.2815,137.36,137.3,7.2885]
[1740675996132,0.04752176,137.35,137.32,0.04590781]
[1740675997438,7.33412176,137.35,137.32,0.04590781]
[1740675997930,7.33422176,137.35,137.32,0.04590781]
[1740675998332,0.04752176,137.35,137.32,0.04590781]
[1740675998637,0.04752176,137.35,137.32,7.33350781]
[1740675998831,0.04752176,137.35,137.32,0.04590781]
[1740676000135,0.04752176,137.35,137.33,7.287]
[1740676000737,0.04752176,137.35,137.34,7.2868]
[1740676001237,0.04752176,137.35,137.32,0.04590781]
[1740676001438,0.04752176,137.35,137.32,7.33350781]
[1740676001934,0.04752176,137.35,137.32,0.04590781]
[1740676002539,7.33412176,137.35,137.32,0.04590781]
[1740676002741,0.04752176,137.35,137.32,0.04590781]
[1740676003842,0.04752176,137.35,137.34,7.2868]
[1740676005345,0.04752176,137.35,137.32,0.04590781]
[1740676005742,7.2871,137.34,137.32,0.04590781]
[1740676005940,0.04752176,137.35,137.32,7.33350781]
[1740676006250,0.04752176,137.35,137.32,0.04590781]
[1740676006745,0.04752176,137.35,137.34,7.2868]
[1740676007846,2.176e-05,137.35,137.34,7.2868]
[1740676008045,2.176e-05,137.35,137.34,29.1268]
[1740676009162,1.9563,137.48,137.45,7.2806]
[1740676009539,1.9563,137.48,137.38,198.1]
[1740676009739,1.9563,137.48,137.39,3.7717]
[1740676009944,1.9563,137.48,137.46,7.2801]
[1740676010140,11.59578923,137.51,137.4,2.0375]
[1740676010346,0.04628111,137.48,137.46,0.05538141]
[1740676011250,8.111e-05,137.48,137.47,7.2799]
[1740676011548,8.111e-05,137.48,137.46,0.05538141]
[1740676014148,7.27958111,137.48,137.46,0.05538141]
[1740676014346,8.111e-05,137.48,137.46,0.05538141]
[1740676015454,8.111e-05,137.48,137.41,7.2828]
[1740676015849,8.111e-05,137.48,137.4,2.0375]
[1740676016558,8.111e-05,137.48,137.43,7.33226365]
[1740676016860,8.111e-05,137.48,137.43,0.05046365]
[1740676017551,8.111e-05,137.48,137.43,7.33236365]
[1740676017756,8.111e-05,137.48,137.43,0.05046365]
[1740676019459,8.111e-05,137.48,137.43,7.33216365]
[1740676020164,7.2799,137.47,137.43,7.33216365]
[1740676020364,8.111e-05,137.48,137.43,0.05046365]
[1740676020662,7.2815,137.44,137.43,0.05046365]
[1740676021064,1.9709,137.46,137.39,7.2839]
[1740676021266,0.05510876,137.45,137.38,198.1]
[1740676021555,0.05510876,137.45,137.38,205.3844]
[1740676021760,0.05510876,137.45,137.38,198.1]
[1740676022256,0.05510876,137.45,137.4,0.0501574]
[1740676022461,11.92,137.44,137.29,1.8904]
[1740676022662,11.92,137.44,137.29,5.9203]
[1740676023464,1.9709,137.46,137.3,1.30428357]
[1740676023663,6.556e-05,137.38,137.35,0.04907448]
[1740676023859,9.2518,137.46,137.33,11.92]
[1740676024060,1.9709,137.46,137.33,11.92]
[1740676024259,11.92,137.51,137.33,204.92]
[1740676024464,7.2791,137.49,137.43,7.2817]
[1740676024864,0.05076773,137.47,137.45,0.0524515]
[1740676025060,7.33096773,137.47,137.45,0.0524515]
[1740676025260,0.05076773,137.47,137.45,0.0524515]
[1740676026064,0.05076773,137.47,137.39,7.284]
[1740676026364,11.92,137.51,137.39,7.284]
[1740676026564,11.92,137.51,137.35,5.9654]
[1740676026966,7.2806,137.46,137.41,7.2828]
[1740676027167,0.05519921,137.44,137.42,0.05393491]
[1740676027357,0.05519921,137.44,137.42,7.33613491]
[1740676027556,0.05519921,137.44,137.42,0.05393491]
[1740676028361,0.05519921,137.44,137.43,7.2821]
[1740676029869,0.05519921,137.44,137.42,0.05393491]
[1740676030573,0.05519921,137.44,137.43,7.2821]
[1740676030872,0.05519921,137.44,137.42,0.05393491]
[1740676031072,0.05519921,137.44,137.42,7.33613491]
[1740676031272,0.05519921,137.44,137.42,0.05393491]
[1740676032372,0.05519921,137.44,137.43,7.2821]
[1740676032568,0.05519921,137.44,137.42,0.05393491]
[1740676032769,7.33709921,137.44,137.42,0.05393491]
[1740676033173,0.05519921,137.44,137.42,0.05393491]
[1740676035472,0.05519921,137.44,137.43,7.2821]
[1740676037273,3.8374,137.53,137.47,7.2797]
[1740676037478,3.8374,137.53,137.43,3.9791]
[1740676037875,7.2781,137.51,137.46,7.2802]
[1740676038076,1.9381,137.53,137.43,3.9791]
[1740676038676,1.9381,137.53,137.47,0.04735301]
[1740676038677,0.05422307,137.49,137.47,0.04735301]
[1740676039677,0.05422307,137.49,137.48,7.2794]
[1740676040874,0.05422307,137.49,137.47,0.04735301]
[1740676042776,0.05422307,137.49,137.47,7.32705301]
[1740676042982,0.05422307,137.49,137.47,0.04735301]
[1740676045373,7.2794,137.48,137.47,0.04735301]
[1740676046380,7.2794,137.48,137.4,1.8575]
[1740676046381,0.05422307,137.49,137.4,1.8575]
[1740676046577,11.92,137.51,137.4,1.8575]
[1740676046776,3.7945,137.5,137.39,207.99995604]
[1740676047083,3.7945,137.5,137.39,215.28395604]
[1740676047281,3.7945,137.5,137.39,205.244]
[1740676047678,0.04626784,137.46,137.39,197.96]
[1740676047879,0.04626784,137.46,137.43,0.05177664]
[1740676048078,0.04626784,137.46,137.37,17.32505604]
[1740676048283,7.2834,137.41,137.37,17.32505604]
[1740676049281,0.04803963,137.4,137.38,0.05178289]
[1740676050377,0.04803963,137.4,137.39,7.2842]
[1740676050585,3.7945,137.5,137.38,0.05178289]
[1740676050774,3.7945,137.5,137.37,10.03995604]
[1740676050978,7.2792,137.49,137.37,10.03995604]
[1740676051283,3.7945,137.5,137.36,1.8575]
[1740676051482,7.2799,137.48,137.42,7.2824]
[1740676051682,0.04958886,137.44,137.42,7.33792819]
[1740676051882,0.04958886,137.44,137.42,0.05552819]
[1740676052085,0.04958886,137.44,137.43,7.2821]
[1740676052584,0.04958886,137.44,137.42,0.05552819]
[1740676053877,7.2821,137.43,137.42,0.05552819]
[1740676054376,0.04958886,137.44,137.42,0.05552819]
[1740676055379,0.04958886,137.44,137.42,7.33772819]
[1740676055585,0.04958886,137.44,137.42,0.05552819]
[1740676055889,0.04958886,137.44,137.43,7.2821]
[1740676056081,0.04958886,137.44,137.42,0.05552819]
[1740676057782,7.33118886,137.44,137.42,0.05552819]
[1740676057986,0.04958886,137.44,137.42,0.05552819]
[1740676058388,7.2821,137.43,137.42,0.05552819]
[1740676058781,7.2821,137.43,137.36,1.8575]
[1740676058982,7.2817,137.44,137.36,1.8575]
[1740676059181,1.9947,137.49,137.4,7.2834]
[1740676059681,7.2821,137.43,137.4,7.2834]
[1740676059878,1.9947,137.49,137.39,7.2839]
[1740676060077,7.2829,137.42,137.4,0.05211949]
[1740676060286,7.2829,137.42,137.39,7.2839]
[1740676060588,7.33078845,137.42,137.4,0.05194943]
[1740676061779,0.04788845,137.42,137.4,7.33534943]
[1740676062182,0.04788845,137.42,137.4,0.05194943]
[1740676062488,7.33078845,137.42,137.4,0.05194943]
[1740676062888,0.04788845,137.42,137.4,0.05194943]
[1740676063089,7.2831,137.41,137.4,0.05194943]
[1740676064095,0.04788845,137.42,137.4,7.33554943]
[1740676064789,7.33058845,137.42,137.4,7.33554943]
[1740676064990,0.04788845,137.42,137.4,7.33554943]
[1740676065386,0.04788845,137.42,137.41,7.2831]
[1740676065586,1.9947,137.49,137.4,0.05194943]
[1740676065786,1.9947,137.49,137.36,1.8575]
[1740676065982,268.23911387,137.55,137.37,11.92]
[1740676066187,1.9773,137.53,137.37,11.92]
[1740676066492,7.2781,137.51,137.37,26.4904]
[1740676066688,7.2781,137.51,137.43,0.04928425]
[1740676067081,0.04896998,137.48,137.46,7.2801]
[1740676067483,0.04896998,137.48,137.46,7.32926291]
[1740676067784,0.04896998,137.48,137.46,0.04916291]
[1740676068393,0.04896998,137.48,137.46,7.32956291]
[1740676069093,0.04896998,137.48,137.46,0.04916291]
[1740676069293,0.04896998,137.48,137.47,7.2799]
[1740676071096,0.04896998,137.48,137.46,0.04916291]
[1740676071490,7.32866998,137.48,137.46,0.04916291]
[1740676071895,0.04896998,137.48,137.46,0.04916291]
[1740676074191,0.04896998,137.48,137.47,7.2799]
[1740676075097,0.04896998,137.48,137.46,0.04916291]
[1740676077198,0.04896998,137.48,137.47,7.2799]
[1740676080196,0.04896998,137.48,137.43,1.8569]
[1740676080696,7.32876998,137.48,137.43,9.1387]
[1740676080900,0.04896998,137.48,137.43,1.8569]
[1740676081305,0.04896998,137.48,137.44,0.05460276]
[1740676083395,7.32866998,137.48,137.44,7.33610276]
[1740676083806,0.04896998,137.48,137.44,0.05460276]
[1740676085205,0.04896998,137.48,137.47,7.2799]
[1740676086600,7.276,137.55,137.47,7.2799]
[1740676086806,7.276,137.55,137.45,5.8427]
[1740676087000,1.9386,137.56,137.45,5.8427]
[1740676087401,1.9386,137.56,137.51,7.2775]
[1740676087644,1.9386,137.56,137.45,5.8427]
[1740676087797,0.04660877,137.55,137.52,0.04858258]
[1740676087999,1.9386,137.56,137.49,7.2784]
[1740676088195,7.32942612,137.55,137.52,0.04813825]
[1740676088406,1.9386,137.56,137.45,5.8427]
[1740676088607,0.04720715,137.55,137.52,0.05030244]
[1740676088907,9.2141,137.56,137.51,7.2775]
[1740676089109,9.2141,137.56,137.52,0.04732197]
[1740676089110,0.05252046,137.55,137.52,0.04732197]
[1740676089803,0.05252046,137.55,137.52,7.32462197]
[1740676090907,0.05252046,137.55,137.52,0.04732197]
[1740676092708,0.05252046,137.55,137.53,7.2765]
[1740676093409,0.05252046,137.55,137.54,7.2762]
[1740676094607,0.05252046,137.55,137.53,7.2766]
[1740676096120,0.05252046,137.55,137.54,7.2762]
[1740676097624,5.669,137.65,137.53,5.8859]
[1740676097823,7.2723,137.62,137.58,7.2737]
[1740676098221,7.2717,137.63,137.59,7.2735]
[1740676099026,0.05554611,137.62,137.6,0.0464589]
[1740676100625,120.06263532,137.71,137.6,0.0464589]
[1740676100822,120.06263532,137.71,137.64,7.2706]
[1740676101028,3.9468,137.71,137.57,11.9]
[1740676101326,3.9468,137.71,137.57,4.39663224]
[1740676101729,0.05604558,137.65,137.63,0.05046485]
[1740676101927,3.9468,137.71,137.64,7.2706]
[1740676102128,0.05482721,137.65,137.64,7.2706]
[1740676102430,3.9468,137.71,137.66,0.04978018]
[1740676102627,3.9468,137.71,137.66,7.2698]
[1740676102830,0.05248222,137.7,137.67,0.04663894]
[1740676105022,0.05248222,137.7,137.67,7.31563894]
[1740676105229,0.05248222,137.7,137.67,0.04663894]
[1740676106823,7.2688,137.68,137.67,0.04663894]
[1740676107023,0.05248222,137.7,137.59,5.8784]
[1740676107222,0.05248222,137.7,137.65,7.2701]
[1740676107427,2.0404,137.71,137.65,7.2701]
[1740676107620,2.0404,137.71,137.59,5.8784]
[1740676108130,0.05096641,137.66,137.64,0.04685112]
[1740676108331,7.2686,137.69,137.64,7.31745112]
[1740676108723,0.04601655,137.66,137.64,0.04685112]
[1740676108936,2.0404,137.71,137.64,0.04685112]
[1740676109126,2.0404,137.71,137.59,5.8784]
[1740676109127,11.9,137.7,137.54,11.9]
[1740676109328,7.2715,137.64,137.59,7.2733]
[1740676109529,7.2715,137.64,137.54,17.6568]
[1740676110129,1.8653,137.69,137.54,17.6568]
[1740676110331,1.8653,137.69,137.58,0.04991681]
[1740676110629,7.2692,137.68,137.63,7.2712]
[1740676111033,1.8653,137.69,137.61,7.2723]
[1740676111236,1.8653,137.69,137.54,17.6568]
[1740676111531,1.8653,137.69,137.6,0.0476149]
[1740676111735,7.2715,137.63,137.54,17.6568]
[1740676111930,1.8653,137.69,137.63,0.05459]
[1740676112236,1.8653,137.69,137.54,17.6568]
[1740676112436,0.04740719,137.67,137.65,0.04709276]
[1740676112638,7.2718,137.63,137.54,17.6568]
[1740676113034,1.8653,137.69,137.57,0.05369606]
[1740676113235,0.05408672,137.6,137.54,17.6568]
[1740676113440,1.8653,137.69,137.62,0.05579316]
[1740676113633,9.134,137.69,137.62,7.2716]
[1740676113946,0.0473352,137.67,137.64,0.05325278]
[1740676114137,1.8653,137.69,137.54,17.6568]
[1740676114334,0.05533441,137.67,137.64,7.31759324]
[1740676114538,2.0404,137.71,137.54,212.11092243]
[1740676114740,0.05522856,137.67,137.64,0.05174478]
[1740676114939,2.0404,137.71,137.54,212.11092243]
[1740676115238,2.0404,137.71,137.58,7.2737]
[1740676115444,0.04919168,137.64,137.61,0.04789037]
[1740676115644,2.0404,137.71,137.54,7.21092243]
[1740676115939,0.05119961,137.64,137.61,0.05478132]
[1740676116340,7.2708,137.65,137.54,7.21092243]
[1740676116537,0.05186177,137.64,137.61,0.04902445]
[1740676116843,0.04849025,137.64,137.61,0.04644857]